[Event "Early Titled Tuesday Blitz | February 8 2022"]
[White "Karabalis, Harilos"]
[Black "Politov, Pavel Y."]
[WhiteFideId "4621808"]
[BlackFideId "24110515"]
[WhiteElo "2168"]
[BlackElo "2090"]
[Result "1-0"]
[Round "02"]
[TimeControl "180+1"]
[Date "2022.02.08"]
[WhiteClock "0:01:47"]
[BlackClock "0:00:05"]

1. e4 {[%clk 0:03:00]}  c5 {[%clk 0:02:58]} 2. a3 {[%clk 0:03:00]}  Nc6 {[%clk 0:02:53]} 3. Bc4 {[%clk 0:02:58]}  e6 {[%clk 0:02:20]} 4. Nc3 {[%clk 0:02:53]}  Nf6 {[%clk 0:02:07]} 5. d3 {[%clk 0:02:47]}  d5 {[%clk 0:02:03]} 6. exd5 {[%clk 0:02:47]}  exd5 {[%clk 0:02:01]} 7. Ba2 {[%clk 0:02:47]}  Be7 {[%clk 0:01:55]} 8. Bg5 {[%clk 0:02:44]}  O-O {[%clk 0:01:52]} 9. Nge2 {[%clk 0:02:39]}  Be6 {[%clk 0:01:48]} 10. Nf4 {[%clk 0:02:38]}  Qd6 {[%clk 0:01:41]} 11. O-O {[%clk 0:02:33]}  h6 {[%clk 0:01:38]} 12. Bxf6 {[%clk 0:02:20]}  Bxf6 {[%clk 0:01:33]} 13. Nfxd5 {[%clk 0:02:10]}  Bxc3 {[%clk 0:01:30]} 14. Nxc3 {[%clk 0:02:09]}  Bxa2 {[%clk 0:01:28]} 15. Nxa2 {[%clk 0:02:09]}  Rfe8 {[%clk 0:01:26]} 16. Nc3 {[%clk 0:02:09]}  Rad8 {[%clk 0:01:23]} 17. Re1 {[%clk 0:02:08]}  Rxe1+ {[%clk 0:01:19]} 18. Qxe1 {[%clk 0:02:08]}  Nd4 {[%clk 0:01:16]} 19. Rc1 {[%clk 0:02:08]}  Qc6 {[%clk 0:01:07]} 20. Qe4 {[%clk 0:02:06]}  Qxe4 {[%clk 0:01:04]} 21. dxe4 {[%clk 0:02:06]}  f6 {[%clk 0:00:51]} 22. Kf1 {[%clk 0:02:05]}  Kf7 {[%clk 0:00:48]} 23. f3 {[%clk 0:02:04]}  Ke6 {[%clk 0:00:44]} 24. Ne2 {[%clk 0:02:03]}  Nxe2 {[%clk 0:00:41]} 25. Kxe2 {[%clk 0:02:03]}  a6 {[%clk 0:00:38]} 26. Rd1 {[%clk 0:02:03]}  Rxd1 {[%clk 0:00:36]} 27. Kxd1 {[%clk 0:02:03]}  Ke5 {[%clk 0:00:34]} 28. Ke2 {[%clk 0:02:01]}  b5 {[%clk 0:00:32]} 29. Ke3 {[%clk 0:02:01]}  c4 {[%clk 0:00:29]} 30. f4+ {[%clk 0:01:58]}  Ke6 {[%clk 0:00:26]} 31. Kd4 {[%clk 0:01:58]}  Kd6 {[%clk 0:00:23]} 32. g3 {[%clk 0:01:54]}  g6 {[%clk 0:00:21]} 33. h4 {[%clk 0:01:53]}  g5 {[%clk 0:00:16]} 34. hxg5 {[%clk 0:01:46]}  hxg5 {[%clk 0:00:14]} 35. fxg5 {[%clk 0:01:46]}  fxg5 {[%clk 0:00:12]} 36. e5+ {[%clk 0:01:45]}  Ke6 {[%clk 0:00:12]} 37. Ke4 {[%clk 0:01:46]}  g4 {[%clk 0:00:10]} 38. c3 {[%clk 0:01:45]}  a5 {[%clk 0:00:10]} 39. Kf4 {[%clk 0:01:45]}  a4 {[%clk 0:00:06]} 40. Ke4 {[%clk 0:01:45]}  Kf7 {[%clk 0:00:04]} 41. Kf5 {[%clk 0:01:46]}  Ke7 {[%clk 0:00:05]} 42. Kxg4 {[%clk 0:01:46]}  Ke6 {[%clk 0:00:05]} 43. Kf4 {[%clk 0:01:47]} 1-0


[Site "https://www.chess.com"]

[Event "Early Titled Tuesday Blitz | February 8 2022"]
[White "Kett, Tim"]
[Black "Chernomordik, Pavel"]
[WhiteFideId "1801210"]
[BlackFideId "2804530"]
[WhiteElo "2098"]
[BlackElo "2249"]
[Result "0-1"]
[Round "02"]
[TimeControl "180+1"]
[Date "2022.02.08"]
[WhiteClock "0:00:01"]
[BlackClock "0:00:25"]

1. e4 {[%clk 0:03:00]}  g6 {[%clk 0:02:59]} 2. d4 {[%clk 0:03:00]}  Bg7 {[%clk 0:02:58]} 3. Nc3 {[%clk 0:03:00]}  d6 {[%clk 0:02:58]} 4. h4 {[%clk 0:02:59]}  h6 {[%clk 0:02:57]} 5. Be3 {[%clk 0:02:58]}  a6 {[%clk 0:02:56]} 6. Qd2 {[%clk 0:02:58]}  b5 {[%clk 0:02:56]} 7. O-O-O {[%clk 0:02:58]}  Bb7 {[%clk 0:02:55]} 8. Bd3 {[%clk 0:02:57]}  Nd7 {[%clk 0:02:52]} 9. f4 {[%clk 0:02:57]}  c5 {[%clk 0:02:43]} 10. e5 {[%clk 0:02:04]}  b4 {[%clk 0:02:32]} 11. Ne4 {[%clk 0:02:01]}  c4 {[%clk 0:02:24]} 12. e6 {[%clk 0:01:29]}  fxe6 {[%clk 0:02:09]} 13. Nxd6+ {[%clk 0:01:14]}  exd6 {[%clk 0:02:08]} 14. Bxg6+ {[%clk 0:01:14]}  Ke7 {[%clk 0:01:59]} 15. Nf3 {[%clk 0:01:12]}  Ngf6 {[%clk 0:01:54]} 16. Qxb4 {[%clk 0:01:09]}  Bxf3 {[%clk 0:01:49]} 17. gxf3 {[%clk 0:01:07]}  Nd5 {[%clk 0:01:44]} 18. Qe1 {[%clk 0:01:03]}  c3 {[%clk 0:01:39]} 19. f5 {[%clk 0:01:01]}  cxb2+ {[%clk 0:01:25]} 20. Kb1 {[%clk 0:00:59]}  N7f6 {[%clk 0:01:19]} 21. fxe6 {[%clk 0:00:53]}  Qc8 {[%clk 0:01:10]} 22. Bd2 {[%clk 0:00:51]}  Qxe6 {[%clk 0:01:08]} 23. Bf5 {[%clk 0:00:33]}  Qxe1 {[%clk 0:01:06]} 24. Rhxe1+ {[%clk 0:00:34]}  Kf8 {[%clk 0:01:04]} 25. c4 {[%clk 0:00:34]}  Ne7 {[%clk 0:01:02]} 26. Bc2 {[%clk 0:00:25]}  Nc6 {[%clk 0:01:01]} 27. Bf4 {[%clk 0:00:24]}  Rd8 {[%clk 0:00:59]} 28. Re6 {[%clk 0:00:21]}  Ne8 {[%clk 0:00:51]} 29. d5 {[%clk 0:00:16]}  Nd4 {[%clk 0:00:45]} 30. Re4 {[%clk 0:00:13]}  Nxc2 {[%clk 0:00:44]} 31. Kxc2 {[%clk 0:00:13]}  Rb8 {[%clk 0:00:43]} 32. Kb1 {[%clk 0:00:12]}  Kf7 {[%clk 0:00:37]} 33. c5 {[%clk 0:00:12]}  Rd8 {[%clk 0:00:34]} 34. Rde1 {[%clk 0:00:09]}  Bf6 {[%clk 0:00:32]} 35. c6 {[%clk 0:00:07]}  Nc7 {[%clk 0:00:31]} 36. h5 {[%clk 0:00:02]}  Nb5 {[%clk 0:00:28]} 37. Re6 {[%clk 0:00:01]}  Na3# {[%clk 0:00:25]} 0-1


[Site "https://www.chess.com"]

[Event "Early Titled Tuesday Blitz | February 8 2022"]
[White "Khamdamova, Afruza"]
[Black "De Silva, L M S T"]
[WhiteFideId "14210444"]
[BlackFideId "9953698"]
[WhiteElo "1660"]
[BlackElo "1631"]
[Result "0-1"]
[Round "02"]
[TimeControl "180+1"]
[Date "2022.02.08"]
[WhiteClock "0:01:20"]
[BlackClock "0:02:34"]

1. e4 {[%clk 0:03:00]}  e5 {[%clk 0:03:00]} 2. Nf3 {[%clk 0:03:00]}  Nc6 {[%clk 0:03:00]} 3. Bb5 {[%clk 0:02:58]}  a6 {[%clk 0:03:01]} 4. Ba4 {[%clk 0:02:55]}  Nf6 {[%clk 0:03:01]} 5. O-O {[%clk 0:02:50]}  b5 {[%clk 0:03:01]} 6. Bb3 {[%clk 0:02:50]}  Bb7 {[%clk 0:03:02]} 7. Re1 {[%clk 0:02:48]}  Bc5 {[%clk 0:03:02]} 8. c3 {[%clk 0:02:44]}  d6 {[%clk 0:03:02]} 9. d4 {[%clk 0:02:43]}  Bb6 {[%clk 0:03:02]} 10. Bg5 {[%clk 0:02:39]}  h6 {[%clk 0:03:02]} 11. Bh4 {[%clk 0:02:39]}  g5 {[%clk 0:03:03]} 12. Bg3 {[%clk 0:02:38]}  O-O {[%clk 0:02:51]} 13. dxe5 {[%clk 0:02:34]}  Nxe5 {[%clk 0:02:50]} 14. Nxe5 {[%clk 0:02:17]}  dxe5 {[%clk 0:02:51]} 15. Bxe5 {[%clk 0:02:17]}  Nxe4 {[%clk 0:02:48]} 16. Bg3 {[%clk 0:02:01]}  Qf6 {[%clk 0:02:43]} 17. Qf3 {[%clk 0:01:45]}  Qxf3 {[%clk 0:02:42]} 18. gxf3 {[%clk 0:01:45]}  Nc5 {[%clk 0:02:41]} 19. Bd1 {[%clk 0:01:38]}  Nd3 {[%clk 0:02:40]} 20. Re7 {[%clk 0:01:34]}  Rae8 {[%clk 0:02:33]} 21. Rxe8 {[%clk 0:01:29]}  Rxe8 {[%clk 0:02:34]} 22. Nd2 {[%clk 0:01:20]}  Re1+ {[%clk 0:02:34]} 23. Kg2 {[%clk 0:01:20]}  Nxb2 {[%clk 0:02:34]} 0-1


[Site "https://www.chess.com"]

[Event "Early Titled Tuesday Blitz | February 8 2022"]
[White "Kiseleva, Arina"]
[Black "Avazkhonov, Alikhon"]
[WhiteFideId "4164989"]
[BlackFideId "14208504"]
[WhiteElo "1866"]
[BlackElo "1739"]
[Result "0-1"]
[Round "02"]
[TimeControl "180+1"]
[Date "2022.02.08"]
[WhiteClock "0:00:01"]
[BlackClock "0:00:04"]

1. d4 {[%clk 0:03:00]}  Nf6 {[%clk 0:02:57]} 2. Nf3 {[%clk 0:02:55]}  g6 {[%clk 0:02:56]} 3. Nbd2 {[%clk 0:02:52]}  Bg7 {[%clk 0:02:56]} 4. e4 {[%clk 0:02:52]}  d6 {[%clk 0:02:56]} 5. Bd3 {[%clk 0:02:50]}  O-O {[%clk 0:02:56]} 6. O-O {[%clk 0:02:50]}  Nbd7 {[%clk 0:02:49]} 7. c3 {[%clk 0:02:48]}  e5 {[%clk 0:02:49]} 8. Re1 {[%clk 0:02:47]}  Qe7 {[%clk 0:02:46]} 9. a4 {[%clk 0:02:42]}  a5 {[%clk 0:02:44]} 10. Nc4 {[%clk 0:02:38]}  b6 {[%clk 0:02:41]} 11. h3 {[%clk 0:02:32]}  Bb7 {[%clk 0:02:34]} 12. Qc2 {[%clk 0:02:24]}  h6 {[%clk 0:02:02]} 13. Bd2 {[%clk 0:01:43]}  Kh7 {[%clk 0:01:20]} 14. dxe5 {[%clk 0:01:26]}  Nxe5 {[%clk 0:01:08]} 15. Nfxe5 {[%clk 0:01:09]}  dxe5 {[%clk 0:01:09]} 16. b4 {[%clk 0:01:08]}  Rfd8 {[%clk 0:00:47]} 17. Bf1 {[%clk 0:00:42]}  Qe6 {[%clk 0:00:22]} 18. f3 {[%clk 0:00:28]}  Nh5 {[%clk 0:00:19]} 19. bxa5 {[%clk 0:00:24]}  bxa5 {[%clk 0:00:17]} 20. Rab1 {[%clk 0:00:21]}  Ba6 {[%clk 0:00:14]} 21. Ne3 {[%clk 0:00:22]}  Bxf1 {[%clk 0:00:13]} 22. Nxf1 {[%clk 0:00:23]}  Rab8 {[%clk 0:00:09]} 23. Rb5 {[%clk 0:00:21]}  Rxb5 {[%clk 0:00:08]} 24. axb5 {[%clk 0:00:22]}  Qb6+ {[%clk 0:00:08]} 25. Be3 {[%clk 0:00:18]}  Qxb5 {[%clk 0:00:08]} 26. c4 {[%clk 0:00:18]}  Qc6 {[%clk 0:00:07]} 27. Ra1 {[%clk 0:00:17]}  Nf4 {[%clk 0:00:03]} 28. Rxa5 {[%clk 0:00:15]}  g5 {[%clk 0:00:02]} 29. Bxf4 {[%clk 0:00:08]}  exf4 {[%clk 0:00:03]} 30. e5+ {[%clk 0:00:08]}  Kg8 {[%clk 0:00:03]} 31. Qf5 {[%clk 0:00:06]}  Qxc4 {[%clk 0:00:02]} 32. Ra1 {[%clk 0:00:03]}  Qe6 {[%clk 0:00:02]} 33. Qxe6 {[%clk 0:00:02]}  fxe6 {[%clk 0:00:03]} 34. Ra5 {[%clk 0:00:02]}  Rd5 {[%clk 0:00:03]} 35. Ra8+ {[%clk 0:00:02]}  Kf7 {[%clk 0:00:02]} 36. Rc8 {[%clk 0:00:02]}  Bxe5 {[%clk 0:00:03]} 37. Nh2 {[%clk 0:00:02]}  c5 {[%clk 0:00:03]} 38. Ng4 {[%clk 0:00:01]}  Bd4+ {[%clk 0:00:04]} 39. Kh2 {[%clk 0:00:01]}  h5 {[%clk 0:00:04]} 40. Nh6+ {[%clk 0:00:02]}  Kg7 {[%clk 0:00:04]} 41. Rc7+ {[%clk 0:00:01]}  Kxh6 {[%clk 0:00:04]} 0-1


[Site "https://www.chess.com"]

[Event "Early Titled Tuesday Blitz | February 8 2022"]
[White "Kopylov, Alexander A."]
[Black "Gracia Alvarez, Gerardo Antonio"]
[WhiteFideId "4164857"]
[BlackFideId "5109124"]
[WhiteElo "2436"]
[BlackElo "2139"]
[Result "1-0"]
[Round "02"]
[TimeControl "180+1"]
[Date "2022.02.08"]
[WhiteClock "0:00:40"]
[BlackClock "0:00:04"]

1. e4 {[%clk 0:02:56]}  c5 {[%clk 0:03:00]} 2. Nf3 {[%clk 0:02:56]}  Nc6 {[%clk 0:03:00]} 3. c3 {[%clk 0:02:53]}  Nf6 {[%clk 0:03:00]} 4. Bd3 {[%clk 0:02:50]}  d5 {[%clk 0:02:50]} 5. exd5 {[%clk 0:02:48]}  Qxd5 {[%clk 0:02:48]} 6. Qe2 {[%clk 0:02:48]}  Bg4 {[%clk 0:02:43]} 7. Bc4 {[%clk 0:02:45]}  Qh5 {[%clk 0:02:34]} 8. h3 {[%clk 0:02:44]}  Bxf3 {[%clk 0:02:34]} 9. Qxf3 {[%clk 0:02:45]}  Qxf3 {[%clk 0:02:33]} 10. gxf3 {[%clk 0:02:46]}  g6 {[%clk 0:02:27]} 11. Bb5 {[%clk 0:02:46]}  Rc8 {[%clk 0:02:27]} 12. d3 {[%clk 0:02:43]}  Bg7 {[%clk 0:02:23]} 13. Be3 {[%clk 0:02:41]}  a6 {[%clk 0:02:10]} 14. Bxc6+ {[%clk 0:02:41]}  Rxc6 {[%clk 0:02:09]} 15. Nd2 {[%clk 0:02:41]}  O-O {[%clk 0:02:05]} 16. Ne4 {[%clk 0:02:41]}  Nd5 {[%clk 0:01:52]} 17. h4 {[%clk 0:02:29]}  f5 {[%clk 0:01:50]} 18. Ng5 {[%clk 0:02:24]}  h6 {[%clk 0:01:44]} 19. Nh3 {[%clk 0:02:24]}  f4 {[%clk 0:01:44]} 20. Bd2 {[%clk 0:02:22]}  e5 {[%clk 0:01:35]} 21. O-O-O {[%clk 0:02:19]}  Rd8 {[%clk 0:01:31]} 22. Kc2 {[%clk 0:02:18]}  Rcd6 {[%clk 0:01:27]} 23. Rhg1 {[%clk 0:02:16]}  Ne7 {[%clk 0:01:26]} 24. Bc1 {[%clk 0:02:15]}  b5 {[%clk 0:01:25]} 25. Rd2 {[%clk 0:02:12]}  b4 {[%clk 0:01:20]} 26. h5 {[%clk 0:01:59]}  g5 {[%clk 0:01:18]} 27. Re1 {[%clk 0:01:58]}  Nd5 {[%clk 0:01:09]} 28. Re4 {[%clk 0:01:45]}  a5 {[%clk 0:00:51]} 29. Ng1 {[%clk 0:01:44]}  Kf7 {[%clk 0:00:38]} 30. Ne2 {[%clk 0:01:43]}  Nb6 {[%clk 0:00:30]} 31. a3 {[%clk 0:01:38]}  bxc3 {[%clk 0:00:26]} 32. Nxc3 {[%clk 0:01:34]}  Nc8 {[%clk 0:00:21]} 33. Rc4 {[%clk 0:01:29]}  Ne7 {[%clk 0:00:20]} 34. Rxc5 {[%clk 0:01:24]}  Nc6 {[%clk 0:00:20]} 35. Nb5 {[%clk 0:01:23]}  Re6 {[%clk 0:00:17]} 36. Kb1 {[%clk 0:00:56]}  Bf8 {[%clk 0:00:17]} 37. Rc4 {[%clk 0:00:56]}  Ne7 {[%clk 0:00:08]} 38. Rc7 {[%clk 0:00:51]}  Kf6 {[%clk 0:00:08]} 39. Nc3 {[%clk 0:00:51]}  Kf7 {[%clk 0:00:05]} 40. Ne4 {[%clk 0:00:51]}  Kg8 {[%clk 0:00:04]} 41. Ra7 {[%clk 0:00:46]}  Nf5 {[%clk 0:00:03]} 42. Rxa5 {[%clk 0:00:43]}  Nd4 {[%clk 0:00:04]} 43. Ra7 {[%clk 0:00:39]}  Nxf3 {[%clk 0:00:04]} 44. Rc2 {[%clk 0:00:40]} 1-0


[Site "https://www.chess.com"]

[Event "Early Titled Tuesday Blitz | February 8 2022"]
[White "Kosteniuk, Alexandra"]
[Black "Oro, Luis"]
[WhiteFideId "4128125"]
[BlackFideId "104094"]
[WhiteElo "2469"]
[BlackElo "2264"]
[Result "1-0"]
[Round "02"]
[TimeControl "180+1"]
[Date "2022.02.08"]
[WhiteClock "0:01:44"]
[BlackClock "0:00:45"]

1. e4 {[%clk 0:03:00]}  c5 {[%clk 0:02:57]} 2. c3 {[%clk 0:03:00]}  Nf6 {[%clk 0:02:56]} 3. e5 {[%clk 0:03:01]}  Nd5 {[%clk 0:02:56]} 4. d4 {[%clk 0:03:02]}  cxd4 {[%clk 0:02:56]} 5. Nf3 {[%clk 0:03:02]}  d6 {[%clk 0:02:54]} 6. cxd4 {[%clk 0:03:02]}  Nc6 {[%clk 0:02:52]} 7. Bc4 {[%clk 0:03:02]}  Nb6 {[%clk 0:02:51]} 8. Bb5 {[%clk 0:03:02]}  e6 {[%clk 0:02:49]} 9. O-O {[%clk 0:03:00]}  Be7 {[%clk 0:02:49]} 10. Nc3 {[%clk 0:03:00]}  O-O {[%clk 0:02:48]} 11. Qe2 {[%clk 0:02:59]}  Qc7 {[%clk 0:02:47]} 12. Bd3 {[%clk 0:02:52]}  h6 {[%clk 0:02:41]} 13. Qe4 {[%clk 0:02:48]}  g6 {[%clk 0:02:32]} 14. Bxh6 {[%clk 0:02:47]}  Re8 {[%clk 0:02:33]} 15. Nb5 {[%clk 0:02:39]}  Qd7 {[%clk 0:02:25]} 16. Rad1 {[%clk 0:02:24]}  d5 {[%clk 0:02:21]} 17. Qg4 {[%clk 0:02:22]}  Bf8 {[%clk 0:02:10]} 18. Bxf8 {[%clk 0:02:18]}  Rxf8 {[%clk 0:02:08]} 19. Nd6 {[%clk 0:02:15]}  Ne7 {[%clk 0:02:02]} 20. h4 {[%clk 0:02:13]}  Kg7 {[%clk 0:01:59]} 21. h5 {[%clk 0:02:12]}  Nf5 {[%clk 0:01:56]} 22. hxg6 {[%clk 0:02:10]}  fxg6 {[%clk 0:01:56]} 23. Nh4 {[%clk 0:02:03]}  Nxh4 {[%clk 0:01:40]} 24. Qxh4 {[%clk 0:02:04]}  Qd8 {[%clk 0:01:31]} 25. Qg4 {[%clk 0:02:04]}  Rf5 {[%clk 0:01:24]} 26. Bxf5 {[%clk 0:01:58]}  exf5 {[%clk 0:01:24]} 27. Qf4 {[%clk 0:01:58]}  Be6 {[%clk 0:01:24]} 28. b3 {[%clk 0:01:57]}  Qd7 {[%clk 0:01:22]} 29. Rc1 {[%clk 0:01:55]}  Qe7 {[%clk 0:01:19]} 30. Rc3 {[%clk 0:01:53]}  Rd8 {[%clk 0:01:15]} 31. Rfc1 {[%clk 0:01:49]}  Rd7 {[%clk 0:01:14]} 32. Rh3 {[%clk 0:01:47]}  Kg8 {[%clk 0:01:06]} 33. Qh6 {[%clk 0:01:46]}  Qg7 {[%clk 0:01:05]} 34. Qg5 {[%clk 0:01:45]}  Re7 {[%clk 0:00:50]} 35. Rh6 {[%clk 0:01:44]}  Bf7 {[%clk 0:00:45]} 36. Qxe7 {[%clk 0:01:44]} 1-0


[Site "https://www.chess.com"]

[Event "Early Titled Tuesday Blitz | February 8 2022"]
[White "Kostiukov, Alexandr"]
[Black "Zarnicki, Pablo"]
[WhiteFideId "14108100"]
[BlackFideId "100137"]
[WhiteElo "2202"]
[BlackElo "2467"]
[Result "1-0"]
[Round "02"]
[TimeControl "180+1"]
[Date "2022.02.08"]
[WhiteClock "0:01:00"]
[BlackClock "0:00:23"]

1. g3 {[%clk 0:02:59]}  c5 {[%clk 0:02:59]} 2. Bg2 {[%clk 0:02:59]}  Nc6 {[%clk 0:03:00]} 3. c4 {[%clk 0:02:59]}  g6 {[%clk 0:03:00]} 4. Nf3 {[%clk 0:03:00]}  Bg7 {[%clk 0:03:00]} 5. O-O {[%clk 0:03:01]}  Nh6 {[%clk 0:03:00]} 6. d4 {[%clk 0:02:56]}  cxd4 {[%clk 0:02:57]} 7. Bxh6 {[%clk 0:02:55]}  Bxh6 {[%clk 0:02:56]} 8. Nxd4 {[%clk 0:02:56]}  Bg7 {[%clk 0:02:57]} 9. e3 {[%clk 0:02:52]}  O-O {[%clk 0:02:55]} 10. Nc3 {[%clk 0:02:52]}  d6 {[%clk 0:02:40]} 11. Nxc6 {[%clk 0:02:40]}  bxc6 {[%clk 0:02:40]} 12. Bxc6 {[%clk 0:02:39]}  Bh3 {[%clk 0:02:40]} 13. Bg2 {[%clk 0:02:32]}  Bxg2 {[%clk 0:02:37]} 14. Kxg2 {[%clk 0:02:32]}  Qc8 {[%clk 0:02:33]} 15. Qd3 {[%clk 0:02:28]}  Qc6+ {[%clk 0:02:22]} 16. Qd5 {[%clk 0:02:21]}  Rfc8 {[%clk 0:02:20]} 17. Rac1 {[%clk 0:02:16]}  Qxc4 {[%clk 0:02:15]} 18. b3 {[%clk 0:02:09]}  Qxd5+ {[%clk 0:01:57]} 19. Nxd5 {[%clk 0:02:08]}  Rxc1 {[%clk 0:01:45]} 20. Rxc1 {[%clk 0:02:08]}  e6 {[%clk 0:01:46]} 21. Ne7+ {[%clk 0:01:56]}  Kf8 {[%clk 0:01:45]} 22. Rc7 {[%clk 0:01:57]}  a5 {[%clk 0:01:40]} 23. Nc6 {[%clk 0:01:55]}  Bf6 {[%clk 0:01:38]} 24. a3 {[%clk 0:01:49]}  d5 {[%clk 0:01:34]} 25. b4 {[%clk 0:01:49]}  axb4 {[%clk 0:01:31]} 26. axb4 {[%clk 0:01:49]}  Ke8 {[%clk 0:01:18]} 27. b5 {[%clk 0:01:48]}  Bd8 {[%clk 0:01:18]} 28. Nxd8 {[%clk 0:01:39]}  Kxd8 {[%clk 0:00:54]} 29. Rxf7 {[%clk 0:01:32]}  Ra5 {[%clk 0:00:54]} 30. Rxh7 {[%clk 0:01:30]}  Rxb5 {[%clk 0:00:54]} 31. Rg7 {[%clk 0:01:30]}  Rb2 {[%clk 0:00:52]} 32. Rxg6 {[%clk 0:01:29]}  Ke7 {[%clk 0:00:49]} 33. h4 {[%clk 0:01:26]}  e5 {[%clk 0:00:46]} 34. h5 {[%clk 0:01:25]}  d4 {[%clk 0:00:45]} 35. exd4 {[%clk 0:01:23]}  exd4 {[%clk 0:00:46]} 36. Rg4 {[%clk 0:01:21]}  d3 {[%clk 0:00:41]} 37. Rd4 {[%clk 0:01:19]}  d2 {[%clk 0:00:41]} 38. Kf3 {[%clk 0:01:19]}  Kf6 {[%clk 0:00:39]} 39. Ke3 {[%clk 0:01:17]}  Kg5 {[%clk 0:00:39]} 40. Rd5+ {[%clk 0:01:15]}  Kh6 {[%clk 0:00:37]} 41. g4 {[%clk 0:01:15]}  Rb4 {[%clk 0:00:32]} 42. f3 {[%clk 0:01:08]}  Rb3+ {[%clk 0:00:32]} 43. Ke2 {[%clk 0:01:05]}  Ra3 {[%clk 0:00:26]} 44. Rxd2 {[%clk 0:01:04]}  Ra6 {[%clk 0:00:25]} 45. Kf2 {[%clk 0:01:04]}  Rf6 {[%clk 0:00:24]} 46. Kg3 {[%clk 0:01:04]}  Ra6 {[%clk 0:00:24]} 47. Kh4 {[%clk 0:01:03]}  Ra5 {[%clk 0:00:24]} 48. g5+ {[%clk 0:01:01]}  Kh7 {[%clk 0:00:24]} 49. f4 {[%clk 0:01:01]}  Ra4 {[%clk 0:00:23]} 50. Kg4 {[%clk 0:01:01]}  Ra7 {[%clk 0:00:23]} 51. Rd6 {[%clk 0:01:01]}  Re7 {[%clk 0:00:23]} 52. h6 {[%clk 0:01:01]}  Rc7 {[%clk 0:00:23]} 53. Kh5 {[%clk 0:01:01]}  Rf7 {[%clk 0:00:22]} 54. g6+ {[%clk 0:01:01]}  Kh8 {[%clk 0:00:23]} 55. gxf7 {[%clk 0:01:02]}  Kh7 {[%clk 0:00:23]} 56. Rd7 {[%clk 0:01:00]} 1-0


[Site "https://www.chess.com"]

[Event "Early Titled Tuesday Blitz | February 8 2022"]
[White "Kucuksari, Kaan"]
[Black "Sviridov, Valery"]
[WhiteFideId "6380166"]
[BlackFideId "4120680"]
[WhiteElo "2305"]
[BlackElo "2454"]
[Result "1-0"]
[Round "02"]
[TimeControl "180+1"]
[Date "2022.02.08"]
[WhiteClock "0:00:22"]
[BlackClock "0:01:32"]

1. d4 {[%clk 0:03:00]}  g6 {[%clk 0:02:57]} 2. e4 {[%clk 0:03:00]}  Bg7 {[%clk 0:02:58]} 3. Nf3 {[%clk 0:03:00]}  d6 {[%clk 0:02:57]} 4. Bd3 {[%clk 0:02:54]}  e6 {[%clk 0:02:56]} 5. Be3 {[%clk 0:02:48]}  b6 {[%clk 0:02:56]} 6. O-O {[%clk 0:02:39]}  Bb7 {[%clk 0:02:55]} 7. Re1 {[%clk 0:02:38]}  Nd7 {[%clk 0:02:55]} 8. c4 {[%clk 0:02:34]}  h6 {[%clk 0:02:52]} 9. Nc3 {[%clk 0:02:34]}  Ne7 {[%clk 0:02:51]} 10. Qd2 {[%clk 0:02:32]}  g5 {[%clk 0:02:50]} 11. h3 {[%clk 0:02:32]}  Ng6 {[%clk 0:02:50]} 12. Ne2 {[%clk 0:02:18]}  O-O {[%clk 0:02:48]} 13. Ng3 {[%clk 0:02:17]}  Nf6 {[%clk 0:02:25]} 14. d5 {[%clk 0:02:01]}  Nd7 {[%clk 0:02:23]} 15. Nd4 {[%clk 0:01:51]}  Qe7 {[%clk 0:02:22]} 16. Nh5 {[%clk 0:01:14]}  Bxd4 {[%clk 0:02:16]} 17. Bxd4 {[%clk 0:01:14]}  e5 {[%clk 0:02:16]} 18. Be3 {[%clk 0:01:11]}  Nf6 {[%clk 0:02:11]} 19. Ng3 {[%clk 0:01:10]}  Nh4 {[%clk 0:02:11]} 20. Bxg5 {[%clk 0:00:28]}  hxg5 {[%clk 0:01:40]} 21. Qxg5+ {[%clk 0:00:28]}  Ng6 {[%clk 0:01:39]} 22. Nf5 {[%clk 0:00:29]}  Qd8 {[%clk 0:01:40]} 23. Re3 {[%clk 0:00:29]}  Nh7 {[%clk 0:01:33]} 24. Qh6 {[%clk 0:00:27]}  Qg5 {[%clk 0:01:32]} 25. Qg7# {[%clk 0:00:22]} 1-0


[Site "https://www.chess.com"]

[Event "Early Titled Tuesday Blitz | February 8 2022"]
[White "Kujawski, Adam"]
[Black "Gontcharov, Vladislav"]
[WhiteFideId "1100920"]
[BlackFideId "4123492"]
[WhiteElo "2053"]
[BlackElo "2503"]
[Result "0-1"]
[Round "02"]
[TimeControl "180+1"]
[Date "2022.02.08"]
[WhiteClock "0:00:01"]
[BlackClock "0:01:11"]

1. e4 {[%clk 0:03:00]}  e6 {[%clk 0:02:59]} 2. d4 {[%clk 0:03:00]}  d5 {[%clk 0:03:00]} 3. Nc3 {[%clk 0:03:00]}  Bb4 {[%clk 0:02:59]} 4. e5 {[%clk 0:02:59]}  c5 {[%clk 0:02:59]} 5. a3 {[%clk 0:02:59]}  Bxc3+ {[%clk 0:02:59]} 6. bxc3 {[%clk 0:03:00]}  Ne7 {[%clk 0:03:00]} 7. a4 {[%clk 0:02:55]}  O-O {[%clk 0:02:44]} 8. Nf3 {[%clk 0:02:55]}  Qc7 {[%clk 0:02:43]} 9. Bd3 {[%clk 0:02:53]}  h6 {[%clk 0:02:39]} 10. O-O {[%clk 0:02:50]}  b6 {[%clk 0:02:27]} 11. a5 {[%clk 0:02:48]}  Ba6 {[%clk 0:02:20]} 12. Bxa6 {[%clk 0:02:42]}  Nxa6 {[%clk 0:02:20]} 13. Qe2 {[%clk 0:02:40]}  Qb7 {[%clk 0:02:13]} 14. Ba3 {[%clk 0:02:35]}  Rfc8 {[%clk 0:02:02]} 15. Rfb1 {[%clk 0:02:31]}  Nc6 {[%clk 0:01:44]} 16. dxc5 {[%clk 0:02:24]}  Nxa5 {[%clk 0:01:39]} 17. cxb6 {[%clk 0:00:22]}  axb6 {[%clk 0:01:37]} 18. Bd6 {[%clk 0:00:21]}  Nc4 {[%clk 0:01:34]} 19. Nd4 {[%clk 0:00:20]}  Nc5 {[%clk 0:01:29]} 20. Bxc5 {[%clk 0:00:17]}  Rxa1 {[%clk 0:01:28]} 21. Rxa1 {[%clk 0:00:16]}  bxc5 {[%clk 0:01:28]} 22. Nf3 {[%clk 0:00:14]}  Qb2 {[%clk 0:01:25]} 23. Qe1 {[%clk 0:00:03]}  Qxc2 {[%clk 0:01:22]} 24. h3 {[%clk 0:00:04]}  Rb8 {[%clk 0:01:21]} 25. Kh2 {[%clk 0:00:02]}  g5 {[%clk 0:01:14]} 26. Ra7 {[%clk 0:00:01]}  Rb2 {[%clk 0:01:11]} 0-1


[Site "https://www.chess.com"]